[Event "Titled Tuesday Blitz August 09 Early 2022"]
[White "Martinez, Shawn"]
[Black "Barp, Alberto"]
[WhiteFideId "2039770"]
[BlackFideId "872555"]
[WhiteElo "2174"]
[BlackElo "2229"]
[Result "0-1"]
[Round "04"]
[TimeControl "180+1"]
[Date "2022.08.09"]
[WhiteClock "0:00:04"]
[BlackClock "0:00:03"]

1. e4 {[%clk 0:02:58]}  c5 {[%clk 0:02:54]} 2. Nc3 {[%clk 0:02:51]}  a6 {[%clk 0:02:48]} 3. d3 {[%clk 0:02:50]}  b5 {[%clk 0:02:47]} 4. g3 {[%clk 0:02:50]}  Bb7 {[%clk 0:02:48]} 5. Bg2 {[%clk 0:02:51]}  g6 {[%clk 0:02:46]} 6. Nh3 {[%clk 0:02:51]}  Bg7 {[%clk 0:02:46]} 7. O-O {[%clk 0:02:51]}  e6 {[%clk 0:02:45]} 8. f4 {[%clk 0:02:49]}  Ne7 {[%clk 0:02:42]} 9. Qe2 {[%clk 0:02:27]}  Nbc6 {[%clk 0:02:35]} 10. Be3 {[%clk 0:02:25]}  Nd4 {[%clk 0:02:35]} 11. Qf2 {[%clk 0:02:24]}  O-O {[%clk 0:02:31]} 12. g4 {[%clk 0:02:22]}  f5 {[%clk 0:01:53]} 13. gxf5 {[%clk 0:02:12]}  exf5 {[%clk 0:01:42]} 14. e5 {[%clk 0:02:03]}  Bxg2 {[%clk 0:01:43]} 15. Qxg2 {[%clk 0:02:02]}  Ne6 {[%clk 0:01:44]} 16. Ng5 {[%clk 0:01:59]}  Nxg5 {[%clk 0:01:40]} 17. Qxg5 {[%clk 0:01:58]}  d6 {[%clk 0:01:37]} 18. Rae1 {[%clk 0:01:43]}  Re8 {[%clk 0:01:30]} 19. Bf2 {[%clk 0:01:41]}  Rc8 {[%clk 0:01:25]} 20. Bh4 {[%clk 0:01:32]}  dxe5 {[%clk 0:01:19]} 21. fxe5 {[%clk 0:01:27]}  Qd4+ {[%clk 0:01:16]} 22. Bf2 {[%clk 0:01:24]}  Qb4 {[%clk 0:01:07]} 23. Qc1 {[%clk 0:01:04]}  Qg4+ {[%clk 0:00:53]} 24. Kh1 {[%clk 0:01:01]}  b4 {[%clk 0:00:52]} 25. Na4 {[%clk 0:00:59]}  Nd5 {[%clk 0:00:42]} 26. Bxc5 {[%clk 0:00:51]}  Bxe5 {[%clk 0:00:20]} 27. Qd2 {[%clk 0:00:50]}  Bb8 {[%clk 0:00:16]} 28. Qg2 {[%clk 0:00:24]}  Qh4 {[%clk 0:00:14]} 29. Qxd5+ {[%clk 0:00:22]}  Kg7 {[%clk 0:00:13]} 30. Bd4+ {[%clk 0:00:21]}  Kh6 {[%clk 0:00:13]} 31. Be3+ {[%clk 0:00:19]}  Rxe3 {[%clk 0:00:11]} 32. Qg2 {[%clk 0:00:07]}  Rxe1 {[%clk 0:00:10]} 33. Rg1 {[%clk 0:00:07]}  Rxg1+ {[%clk 0:00:09]} 34. Kxg1 {[%clk 0:00:07]}  Qe1+ {[%clk 0:00:08]} 35. Qf1 {[%clk 0:00:08]}  Qe3+ {[%clk 0:00:06]} 36. Kg2 {[%clk 0:00:08]}  Qg5+ {[%clk 0:00:05]} 37. Kh1 {[%clk 0:00:08]}  Re8 {[%clk 0:00:05]} 38. Qh3+ {[%clk 0:00:04]}  Kg7 {[%clk 0:00:04]} 39. Qf1 {[%clk 0:00:04]}  Qh5 {[%clk 0:00:03]} 40. d4 {[%clk 0:00:04]}  Qxh2# {[%clk 0:00:03]} 0-1


[Site "https://www.chess.com"]

[Event "Titled Tuesday Blitz August 09 Early 2022"]
[White "McConnell, Griffin"]
[Black "Tica, Sven"]
[WhiteFideId "30942551"]
[BlackFideId "14526948"]
[WhiteElo "2320"]
[BlackElo "2350"]
[Result "0-1"]
[Round "04"]
[TimeControl "180+1"]
[Date "2022.08.09"]
[WhiteClock "0:00:02"]
[BlackClock "0:00:08"]

1. e4 {[%clk 0:03:00]}  g6 {[%clk 0:03:00]} 2. Nf3 {[%clk 0:02:59]}  Bg7 {[%clk 0:03:01]} 3. d4 {[%clk 0:03:00]}  d6 {[%clk 0:02:58]} 4. Bd3 {[%clk 0:03:00]}  Nd7 {[%clk 0:02:57]} 5. O-O {[%clk 0:03:00]}  e6 {[%clk 0:02:56]} 6. c3 {[%clk 0:03:00]}  Ne7 {[%clk 0:02:56]} 7. Be3 {[%clk 0:02:59]}  b6 {[%clk 0:02:55]} 8. Qd2 {[%clk 0:02:58]}  h6 {[%clk 0:02:55]} 9. Na3 {[%clk 0:02:53]}  Bb7 {[%clk 0:02:54]} 10. Rad1 {[%clk 0:02:52]}  a6 {[%clk 0:02:53]} 11. Nc2 {[%clk 0:02:52]}  Nf6 {[%clk 0:02:53]} 12. e5 {[%clk 0:02:48]}  Ne4 {[%clk 0:02:36]} 13. Qe2 {[%clk 0:02:35]}  Nf5 {[%clk 0:02:17]} 14. Bf4 {[%clk 0:02:24]}  Ng5 {[%clk 0:02:08]} 15. Nxg5 {[%clk 0:01:56]}  hxg5 {[%clk 0:02:09]} 16. Bg3 {[%clk 0:01:38]}  Nxg3 {[%clk 0:02:06]} 17. fxg3 {[%clk 0:01:37]}  dxe5 {[%clk 0:02:06]} 18. dxe5 {[%clk 0:01:34]}  Qe7 {[%clk 0:02:04]} 19. Be4 {[%clk 0:01:31]}  Bxe4 {[%clk 0:01:39]} 20. Qxe4 {[%clk 0:01:30]}  O-O {[%clk 0:01:40]} 21. Nd4 {[%clk 0:01:28]}  Rad8 {[%clk 0:01:35]} 22. Kh1 {[%clk 0:01:22]}  Qc5 {[%clk 0:01:30]} 23. Nf3 {[%clk 0:01:07]}  Rxd1 {[%clk 0:01:09]} 24. Rxd1 {[%clk 0:01:07]}  Qe7 {[%clk 0:01:07]} 25. g4 {[%clk 0:01:02]}  Rd8 {[%clk 0:01:06]} 26. Rxd8+ {[%clk 0:01:02]}  Qxd8 {[%clk 0:01:07]} 27. Qd4 {[%clk 0:01:02]}  Qe7 {[%clk 0:00:58]} 28. h3 {[%clk 0:00:57]}  Kh7 {[%clk 0:00:48]} 29. Qe3 {[%clk 0:00:44]}  Bh6 {[%clk 0:00:48]} 30. Qd4 {[%clk 0:00:42]}  Kg8 {[%clk 0:00:44]} 31. a3 {[%clk 0:00:37]}  Kf8 {[%clk 0:00:42]} 32. Kg1 {[%clk 0:00:32]}  c5 {[%clk 0:00:36]} 33. Qe4 {[%clk 0:00:29]}  Qd8 {[%clk 0:00:30]} 34. Kf2 {[%clk 0:00:26]}  Bg7 {[%clk 0:00:27]} 35. Ke2 {[%clk 0:00:23]}  b5 {[%clk 0:00:26]} 36. Qd3 {[%clk 0:00:22]}  Qc7 {[%clk 0:00:24]} 37. Qe4 {[%clk 0:00:22]}  c4 {[%clk 0:00:24]} 38. Qd4 {[%clk 0:00:21]}  Ke7 {[%clk 0:00:23]} 39. Ke3 {[%clk 0:00:18]}  f6 {[%clk 0:00:13]} 40. Ke2 {[%clk 0:00:13]}  Qc6 {[%clk 0:00:09]} 41. Qa7+ {[%clk 0:00:11]}  Qd7 {[%clk 0:00:08]} 42. Qxd7+ {[%clk 0:00:10]}  Kxd7 {[%clk 0:00:09]} 43. Ke3 {[%clk 0:00:09]}  Kc6 {[%clk 0:00:07]} 44. Ke4 {[%clk 0:00:09]}  f5+ {[%clk 0:00:08]} 45. Kd4 {[%clk 0:00:05]}  Bf8 {[%clk 0:00:08]} 46. Ke3 {[%clk 0:00:02]}  Kd5 {[%clk 0:00:08]} 0-1


[Site "https://www.chess.com"]

[Event "Titled Tuesday Blitz August 09 Early 2022"]
[White "Melikhov, Evgeny V."]
[Black "White, John S."]
[WhiteFideId "4122046"]
[BlackFideId "2502348"]
[WhiteElo "1963"]
[BlackElo "1593"]
[Result "1-0"]
[Round "04"]
[TimeControl "180+1"]
[Date "2022.08.09"]
[WhiteClock "0:00:25"]
[BlackClock "0:00:08"]

1. e4 {[%clk 0:03:00]}  c5 {[%clk 0:02:58]} 2. Nf3 {[%clk 0:03:00]}  e6 {[%clk 0:02:57]} 3. d4 {[%clk 0:02:58]}  cxd4 {[%clk 0:02:57]} 4. Nxd4 {[%clk 0:02:58]}  Nc6 {[%clk 0:02:57]} 5. Ne2 {[%clk 0:02:42]}  d6 {[%clk 0:02:55]} 6. g3 {[%clk 0:02:40]}  Nf6 {[%clk 0:02:54]} 7. Bg2 {[%clk 0:02:40]}  Be7 {[%clk 0:02:53]} 8. O-O {[%clk 0:02:39]}  O-O {[%clk 0:02:53]} 9. Nbc3 {[%clk 0:02:38]}  a6 {[%clk 0:02:52]} 10. a4 {[%clk 0:02:36]}  Qc7 {[%clk 0:02:51]} 11. h3 {[%clk 0:02:31]}  Bd7 {[%clk 0:02:49]} 12. Be3 {[%clk 0:02:26]}  Rad8 {[%clk 0:02:45]} 13. g4 {[%clk 0:02:11]}  Ne5 {[%clk 0:02:20]} 14. b3 {[%clk 0:02:04]}  Bc6 {[%clk 0:02:12]} 15. Ng3 {[%clk 0:01:57]}  Ng6 {[%clk 0:01:58]} 16. Nce2 {[%clk 0:01:42]}  d5 {[%clk 0:01:56]} 17. exd5 {[%clk 0:01:25]}  Nxd5 {[%clk 0:01:54]} 18. Qc1 {[%clk 0:01:20]}  Nxe3 {[%clk 0:01:51]} 19. Qxe3 {[%clk 0:01:20]}  Bxg2 {[%clk 0:01:46]} 20. Kxg2 {[%clk 0:01:20]}  Qxc2 {[%clk 0:01:35]} 21. Rac1 {[%clk 0:01:19]}  Qd2 {[%clk 0:01:32]} 22. Ne4 {[%clk 0:01:05]}  Qxe3 {[%clk 0:01:18]} 23. fxe3 {[%clk 0:01:06]}  Rd3 {[%clk 0:01:14]} 24. Rc3 {[%clk 0:01:05]}  Rfd8 {[%clk 0:01:09]} 25. Rfc1 {[%clk 0:01:05]}  Rxc3 {[%clk 0:01:03]} 26. Rxc3 {[%clk 0:01:02]}  h6 {[%clk 0:01:03]} 27. Nf4 {[%clk 0:00:55]}  Nxf4+ {[%clk 0:00:59]} 28. exf4 {[%clk 0:00:55]}  Bb4 {[%clk 0:00:49]} 29. Rc7 {[%clk 0:00:53]}  Rd4 {[%clk 0:00:47]} 30. Nf2 {[%clk 0:00:38]}  Rxf4 {[%clk 0:00:39]} 31. Rxb7 {[%clk 0:00:38]}  Bc5 {[%clk 0:00:38]} 32. Nd3 {[%clk 0:00:37]}  Re4 {[%clk 0:00:20]} 33. Nxc5 {[%clk 0:00:36]}  Re2+ {[%clk 0:00:18]} 34. Kf3 {[%clk 0:00:35]}  Rc2 {[%clk 0:00:18]} 35. Nxa6 {[%clk 0:00:35]}  Rc3+ {[%clk 0:00:17]} 36. Kg2 {[%clk 0:00:33]}  Rc2+ {[%clk 0:00:16]} 37. Kf1 {[%clk 0:00:32]}  Rc1+ {[%clk 0:00:16]} 38. Ke2 {[%clk 0:00:32]}  Rc2+ {[%clk 0:00:16]} 39. Kd3 {[%clk 0:00:31]}  Rh2 {[%clk 0:00:16]} 40. Nc5 {[%clk 0:00:31]}  Rxh3+ {[%clk 0:00:16]} 41. Kc4 {[%clk 0:00:30]}  Rg3 {[%clk 0:00:17]} 42. a5 {[%clk 0:00:30]}  Rxg4+ {[%clk 0:00:17]} 43. Kb5 {[%clk 0:00:30]}  Rg5 {[%clk 0:00:17]} 44. a6 {[%clk 0:00:30]}  Rg1 {[%clk 0:00:17]} 45. a7 {[%clk 0:00:29]}  Ra1 {[%clk 0:00:17]} 46. Na4 {[%clk 0:00:28]}  Kh7 {[%clk 0:00:16]} 47. a8=Q {[%clk 0:00:28]}  f5 {[%clk 0:00:16]} 48. Qf8 {[%clk 0:00:27]}  Rg1 {[%clk 0:00:14]} 49. Nc5 {[%clk 0:00:27]}  e5 {[%clk 0:00:13]} 50. Ne6 {[%clk 0:00:27]}  e4 {[%clk 0:00:11]} 51. Rxg7+ {[%clk 0:00:25]}  Rxg7 {[%clk 0:00:08]} 52. Qxg7# {[%clk 0:00:25]} 1-0


[Site "https://www.chess.com"]

[Event "Titled Tuesday Blitz August 09 Early 2022"]
[White "Melikyan, Gnel"]
[Black "Orzech, Dominik"]
[WhiteFideId "54109990"]
[BlackFideId "1115065"]
[WhiteElo "1772"]
[BlackElo "2272"]
[Result "1-0"]
[Round "04"]
[TimeControl "180+1"]
[Date "2022.08.09"]
[WhiteClock "0:02:00"]
[BlackClock "0:01:31"]

1. e4 {[%clk 0:03:00]}  e6 {[%clk 0:02:53]} 2. d4 {[%clk 0:03:00]}  d5 {[%clk 0:02:52]} 3. e5 {[%clk 0:03:00]}  c5 {[%clk 0:02:49]} 4. c3 {[%clk 0:03:01]}  Nc6 {[%clk 0:02:48]} 5. Nf3 {[%clk 0:03:01]}  Bd7 {[%clk 0:02:48]} 6. a3 {[%clk 0:03:00]}  f6 {[%clk 0:02:46]} 7. b4 {[%clk 0:02:59]}  fxe5 {[%clk 0:02:43]} 8. dxe5 {[%clk 0:02:58]}  Qc7 {[%clk 0:02:39]} 9. Bf4 {[%clk 0:02:54]}  g5 {[%clk 0:02:35]} 10. Nxg5 {[%clk 0:02:49]}  Nxe5 {[%clk 0:02:28]} 11. Qh5+ {[%clk 0:02:44]}  Ke7 {[%clk 0:02:28]} 12. Nf7 {[%clk 0:02:30]}  Nd3+ {[%clk 0:01:55]} 13. Bxd3 {[%clk 0:02:29]}  Qxf4 {[%clk 0:01:55]} 14. Nxh8 {[%clk 0:02:27]}  Bg7 {[%clk 0:01:48]} 15. Qxh7 {[%clk 0:02:08]}  Qc1+ {[%clk 0:01:44]} 16. Ke2 {[%clk 0:02:09]}  Qxh1 {[%clk 0:01:35]} 17. Qxg7+ {[%clk 0:02:09]}  Kd6 {[%clk 0:01:36]} 18. bxc5+ {[%clk 0:02:05]}  Kc7 {[%clk 0:01:32]} 19. Qe5+ {[%clk 0:02:03]}  Kc6 {[%clk 0:01:31]} 20. Qd6# {[%clk 0:02:00]} 1-0


[Site "https://www.chess.com"]

[Event "Titled Tuesday Blitz August 09 Early 2022"]
[White "Miszler, Levente"]
[Black "parintele_chess"]
[WhiteFideId "763276"]
[WhiteElo "1966"]
[BlackElo "2208"]
[Result "1-0"]
[Round "04"]
[TimeControl "180+1"]
[Date "2022.08.09"]
[WhiteClock "0:01:02"]
[BlackClock "0:00:06"]

1. Nf3 {[%clk 0:03:00]}  d5 {[%clk 0:02:59]} 2. c4 {[%clk 0:02:56]}  d4 {[%clk 0:02:58]} 3. e3 {[%clk 0:02:56]}  c5 {[%clk 0:02:54]} 4. exd4 {[%clk 0:02:50]}  cxd4 {[%clk 0:02:54]} 5. g3 {[%clk 0:02:42]}  Nc6 {[%clk 0:02:53]} 6. Bg2 {[%clk 0:02:41]}  Bg4 {[%clk 0:02:52]} 7. d3 {[%clk 0:02:41]}  Nf6 {[%clk 0:02:52]} 8. O-O {[%clk 0:02:41]}  e6 {[%clk 0:02:40]} 9. h3 {[%clk 0:02:38]}  Bh5 {[%clk 0:02:39]} 10. Nbd2 {[%clk 0:02:35]}  Be7 {[%clk 0:02:36]} 11. a3 {[%clk 0:02:33]}  a5 {[%clk 0:02:36]} 12. b3 {[%clk 0:02:30]}  O-O {[%clk 0:02:36]} 13. Rb1 {[%clk 0:02:30]}  Bg6 {[%clk 0:02:35]} 14. Qe2 {[%clk 0:02:24]}  Re8 {[%clk 0:02:33]} 15. Nh4 {[%clk 0:02:22]}  Bd6 {[%clk 0:02:06]} 16. Nxg6 {[%clk 0:02:21]}  hxg6 {[%clk 0:02:07]} 17. Ne4 {[%clk 0:02:19]}  Nxe4 {[%clk 0:02:06]} 18. Qxe4 {[%clk 0:02:20]}  f5 {[%clk 0:02:01]} 19. Qe2 {[%clk 0:02:20]}  e5 {[%clk 0:01:57]} 20. Bd2 {[%clk 0:02:17]}  Qe7 {[%clk 0:01:50]} 21. b4 {[%clk 0:02:15]}  axb4 {[%clk 0:01:49]} 22. axb4 {[%clk 0:02:16]}  e4 {[%clk 0:01:31]} 23. c5 {[%clk 0:02:00]}  Bb8 {[%clk 0:00:44]} 24. b5 {[%clk 0:01:58]}  Nd8 {[%clk 0:00:43]} 25. dxe4 {[%clk 0:01:57]}  fxe4 {[%clk 0:00:42]} 26. Qc4+ {[%clk 0:01:57]}  Ne6 {[%clk 0:00:38]} 27. Bxe4 {[%clk 0:01:57]}  Qxc5 {[%clk 0:00:38]} 28. Qxc5 {[%clk 0:01:43]}  Nxc5 {[%clk 0:00:39]} 29. Bxg6 {[%clk 0:01:43]}  Re2 {[%clk 0:00:40]} 30. Bb4 {[%clk 0:01:42]}  Ne4 {[%clk 0:00:35]} 31. Rfe1 {[%clk 0:01:38]}  Raa2 {[%clk 0:00:17]} 32. Bxe4 {[%clk 0:01:33]}  Rxf2 {[%clk 0:00:17]} 33. Rf1 {[%clk 0:01:19]}  Bxg3 {[%clk 0:00:13]} 34. Rxf2 {[%clk 0:01:20]}  Rxf2 {[%clk 0:00:13]} 35. Bxb7 {[%clk 0:01:15]}  d3 {[%clk 0:00:12]} 36. Bd5+ {[%clk 0:01:13]}  Kh8 {[%clk 0:00:09]} 37. b6 {[%clk 0:01:13]}  d2 {[%clk 0:00:08]} 38. b7 {[%clk 0:01:09]}  Re2 {[%clk 0:00:07]} 39. Kf1 {[%clk 0:01:06]}  Re1+ {[%clk 0:00:06]} 40. Rxe1 {[%clk 0:01:06]}  dxe1=Q+ {[%clk 0:00:07]} 41. Bxe1 {[%clk 0:01:06]}  Bb8 {[%clk 0:00:05]} 42. Kg2 {[%clk 0:01:03]}  g5 {[%clk 0:00:02]} 43. Bg3 {[%clk 0:01:03]}  Ba7 {[%clk 0:00:03]} 44. b8=Q+ {[%clk 0:01:02]}  Bxb8 {[%clk 0:00:03]} 45. Bxb8 {[%clk 0:01:03]}  Kg7 {[%clk 0:00:04]} 46. Kf3 {[%clk 0:01:03]}  Kg6 {[%clk 0:00:05]} 47. Kg4 {[%clk 0:01:03]}  Kh6 {[%clk 0:00:04]} 48. Be5 {[%clk 0:01:02]}  Kg6 {[%clk 0:00:04]} 49. Bd4 {[%clk 0:01:02]}  Kh6 {[%clk 0:00:04]} 50. Be3 {[%clk 0:01:02]}  Kg6 {[%clk 0:00:05]} 51. Bxg5 {[%clk 0:01:02]}  Kg7 {[%clk 0:00:06]} 52. h4 {[%clk 0:01:02]} 1-0


[Site "https://www.chess.com"]

[Event "Titled Tuesday Blitz August 09 Early 2022"]
[White "Molina, Roberto Junio Brito"]
[Black "Andreikin, Dmitry"]
[WhiteFideId "2109450"]
[BlackFideId "4158814"]
[WhiteElo "2816"]
[BlackElo "3115"]
[Result "0-1"]
[Round "04"]
[TimeControl "180+1"]
[Date "2022.08.09"]
[WhiteClock "0:00:08"]
[BlackClock "0:00:42"]

1. d4 {[%clk 0:03:00]}  Nf6 {[%clk 0:02:59]} 2. Nf3 {[%clk 0:02:59]}  g6 {[%clk 0:02:58]} 3. e3 {[%clk 0:02:56]}  Bg7 {[%clk 0:02:59]} 4. Be2 {[%clk 0:02:57]}  O-O {[%clk 0:02:59]} 5. O-O {[%clk 0:02:58]}  c5 {[%clk 0:02:55]} 6. dxc5 {[%clk 0:02:57]}  Na6 {[%clk 0:02:51]} 7. Bxa6 {[%clk 0:02:55]}  bxa6 {[%clk 0:02:52]} 8. b4 {[%clk 0:02:53]}  a5 {[%clk 0:02:46]} 9. a3 {[%clk 0:02:52]}  Ba6 {[%clk 0:02:35]} 10. Re1 {[%clk 0:02:51]}  Ne4 {[%clk 0:02:36]} 11. Nd4 {[%clk 0:02:49]}  Qb8 {[%clk 0:02:32]} 12. f3 {[%clk 0:02:43]}  Ng5 {[%clk 0:02:24]} 13. c3 {[%clk 0:02:39]}  Rd8 {[%clk 0:02:23]} 14. e4 {[%clk 0:02:35]}  Ne6 {[%clk 0:02:19]} 15. Be3 {[%clk 0:02:33]}  Qc7 {[%clk 0:02:09]} 16. Nd2 {[%clk 0:02:27]}  Nxd4 {[%clk 0:02:04]} 17. cxd4 {[%clk 0:02:23]}  d6 {[%clk 0:02:05]} 18. Rc1 {[%clk 0:02:16]}  axb4 {[%clk 0:02:03]} 19. axb4 {[%clk 0:02:15]}  Rab8 {[%clk 0:02:03]} 20. Qa4 {[%clk 0:02:09]}  Bb5 {[%clk 0:02:03]} 21. Qa3 {[%clk 0:02:07]}  dxc5 {[%clk 0:01:56]} 22. Rxc5 {[%clk 0:02:02]}  Qb7 {[%clk 0:01:55]} 23. Nb3 {[%clk 0:01:57]}  Be8 {[%clk 0:01:34]} 24. Rc4 {[%clk 0:01:31]}  f5 {[%clk 0:01:20]} 25. d5 {[%clk 0:01:21]}  fxe4 {[%clk 0:01:19]} 26. fxe4 {[%clk 0:01:21]}  Qb5 {[%clk 0:01:19]} 27. Rec1 {[%clk 0:01:19]}  Bf7 {[%clk 0:01:10]} 28. Na5 {[%clk 0:01:06]}  e6 {[%clk 0:01:05]} 29. Nc6 {[%clk 0:01:02]}  exd5 {[%clk 0:01:05]} 30. Rc5 {[%clk 0:00:57]}  Qe2 {[%clk 0:01:04]} 31. Nxd8 {[%clk 0:00:53]}  Bb2 {[%clk 0:01:00]} 32. Qb3 {[%clk 0:00:16]}  Bxc1 {[%clk 0:01:00]} 33. Rxc1 {[%clk 0:00:15]}  Rxb4 {[%clk 0:00:44]} 34. Qc3 {[%clk 0:00:08]}  Rb2 {[%clk 0:00:42]} 0-1


[Site "https://www.chess.com"]

[Event "Titled Tuesday Blitz August 09 Early 2022"]
[White "Musovic, Armin"]
[Black "Matveeva, Olga"]
[WhiteFideId "939935"]
[BlackFideId "24107018"]
[WhiteElo "2255"]
[BlackElo "2052"]
[Result "1-0"]
[Round "04"]
[TimeControl "180+1"]
[Date "2022.08.09"]
[WhiteClock "0:02:56"]
[BlackClock "0:02:32"]

1. a3 {[%clk 0:03:00]}  d5 {[%clk 0:02:58]} 2. Nc3 {[%clk 0:03:01]}  e5 {[%clk 0:02:57]} 3. d4 {[%clk 0:03:02]}  exd4 {[%clk 0:02:55]} 4. Qxd4 {[%clk 0:03:02]}  Nf6 {[%clk 0:02:54]} 5. e4 {[%clk 0:03:03]}  c5 {[%clk 0:02:42]} 6. Qe5+ {[%clk 0:03:01]}  Be6 {[%clk 0:02:39]} 7. exd5 {[%clk 0:03:00]}  Nxd5 {[%clk 0:02:39]} 8. Bg5 {[%clk 0:03:01]}  Qd6 {[%clk 0:02:32]} 9. Qxd6 {[%clk 0:02:55]}  Bxd6 {[%clk 0:02:33]} 10. Nxd5 {[%clk 0:02:56]}  Bxd5 {[%clk 0:02:32]} 11. O-O-O {[%clk 0:02:56]} 1-0


[Site "https://www.chess.com"]

[Event "Titled Tuesday Blitz August 09 Early 2022"]
[White "Nazari, Arad"]
[Black "Chigaev, Maksim"]
[WhiteFideId "12577324"]
[BlackFideId "4108116"]
[WhiteElo "2766"]
[BlackElo "2899"]
[Result "0-1"]
[Round "04"]
[TimeControl "180+1"]
[Date "2022.08.09"]
[WhiteClock "0:00:08"]
[BlackClock "0:00:52"]

1. e4 {[%clk 0:03:00]}  c5 {[%clk 0:02:58]} 2. Nf3 {[%clk 0:03:01]}  d6 {[%clk 0:02:58]} 3. Bb5+ {[%clk 0:03:01]}  Nd7 {[%clk 0:02:57]} 4. d4 {[%clk 0:03:01]}  cxd4 {[%clk 0:02:57]} 5. Qxd4 {[%clk 0:03:01]}  a6 {[%clk 0:02:51]} 6. Bxd7+ {[%clk 0:03:01]}  Bxd7 {[%clk 0:02:51]} 7. c4 {[%clk 0:03:02]}  Nf6 {[%clk 0:02:51]} 8. O-O {[%clk 0:03:00]}  g6 {[%clk 0:02:52]} 9. Rd1 {[%clk 0:02:59]}  Bg7 {[%clk 0:02:52]} 10. Nc3 {[%clk 0:02:58]}  O-O {[%clk 0:02:52]} 11. Qd3 {[%clk 0:02:49]}  Bg4 {[%clk 0:02:47]} 12. h3 {[%clk 0:02:41]}  Bxf3 {[%clk 0:02:42]} 13. Qxf3 {[%clk 0:02:42]}  Nd7 {[%clk 0:02:41]} 14. Qd3 {[%clk 0:02:25]}  Ne5 {[%clk 0:02:31]} 15. Qd5 {[%clk 0:02:21]}  Qc7 {[%clk 0:02:24]} 16. b3 {[%clk 0:02:03]}  b5 {[%clk 0:02:09]} 17. Bg5 {[%clk 0:01:36]}  bxc4 {[%clk 0:02:04]} 18. bxc4 {[%clk 0:01:24]}  h6 {[%clk 0:01:50]} 19. Bh4 {[%clk 0:01:14]}  e6 {[%clk 0:01:42]} 20. Qxd6 {[%clk 0:01:03]}  Qxd6 {[%clk 0:01:39]} 21. Rxd6 {[%clk 0:01:04]}  Nxc4 {[%clk 0:01:40]} 22. Rc6 {[%clk 0:00:58]}  Rfc8 {[%clk 0:01:37]} 23. Rxc8+ {[%clk 0:00:58]}  Rxc8 {[%clk 0:01:37]} 24. Rc1 {[%clk 0:00:58]}  Nd2 {[%clk 0:01:32]} 25. Ne2 {[%clk 0:00:58]}  Rxc1+ {[%clk 0:01:32]} 26. Nxc1 {[%clk 0:00:59]}  Nxe4 {[%clk 0:01:32]} 27. Be7 {[%clk 0:00:54]}  Bf8 {[%clk 0:01:21]} 28. Bxf8 {[%clk 0:00:40]}  Kxf8 {[%clk 0:01:22]} 29. Nd3 {[%clk 0:00:38]}  Ke7 {[%clk 0:01:20]} 30. Nb4 {[%clk 0:00:36]}  Nc5 {[%clk 0:01:18]} 31. Kf1 {[%clk 0:00:35]}  Kd6 {[%clk 0:01:17]} 32. Ke2 {[%clk 0:00:34]}  a5 {[%clk 0:01:17]} 33. Nc2 {[%clk 0:00:34]}  Kd5 {[%clk 0:01:18]} 34. Kd2 {[%clk 0:00:23]}  Ne4+ {[%clk 0:01:17]} 35. Ke3 {[%clk 0:00:23]}  Nc3 {[%clk 0:01:15]} 36. a3 {[%clk 0:00:21]}  Kc4 {[%clk 0:01:16]} 37. f3 {[%clk 0:00:15]}  Nd5+ {[%clk 0:01:08]} 38. Ke4 {[%clk 0:00:14]}  Kb3 {[%clk 0:01:06]} 39. Nd4+ {[%clk 0:00:13]}  Kxa3 {[%clk 0:01:06]} 40. Nc6 {[%clk 0:00:12]}  a4 {[%clk 0:01:07]} 41. Ne5 {[%clk 0:00:10]}  Kb3 {[%clk 0:00:52]} 42. Nxf7 {[%clk 0:00:08]}  a3 {[%clk 0:00:52]} 0-1


[Site "https://www.chess.com"]

[Event "Titled Tuesday Blitz August 09 Early 2022"]
[White "Onslow, Alfie"]
[Black "Floresvillar Gonzalez, Luis Migu"]
[WhiteFideId "436976"]
[BlackFideId "5100542"]
[WhiteElo "1885"]
[BlackElo "2040"]
[Result "0-1"]
[Round "04"]
[TimeControl "180+1"]
[Date "2022.08.09"]
[WhiteClock "0:00:01"]
[BlackClock "0:00:17"]

1. e4 {[%clk 0:02:58]}  e6 {[%clk 0:02:59]} 2. d3 {[%clk 0:02:57]}  d5 {[%clk 0:02:58]} 3. Nd2 {[%clk 0:02:52]}  c5 {[%clk 0:02:57]} 4. Ngf3 {[%clk 0:02:50]}  Nc6 {[%clk 0:02:57]} 5. g3 {[%clk 0:02:50]}  Nf6 {[%clk 0:02:54]} 6. Bg2 {[%clk 0:02:51]}  Be7 {[%clk 0:02:52]} 7. O-O {[%clk 0:02:50]}  O-O {[%clk 0:02:52]} 8. Re1 {[%clk 0:02:44]}  b6 {[%clk 0:02:50]} 9. e5 {[%clk 0:02:44]}  Nd7 {[%clk 0:02:49]} 10. Nf1 {[%clk 0:02:44]}  Bb7 {[%clk 0:02:45]} 11. h4 {[%clk 0:02:43]}  Qc7 {[%clk 0:02:43]} 12. Bf4 {[%clk 0:02:43]}  Rfe8 {[%clk 0:02:20]} 13. N1h2 {[%clk 0:02:27]}  h6 {[%clk 0:02:18]} 14. Ng4 {[%clk 0:02:09]}  Nf8 {[%clk 0:02:15]} 15. h5 {[%clk 0:02:05]}  Nh7 {[%clk 0:02:08]} 16. Qd2 {[%clk 0:02:04]}  Bf8 {[%clk 0:02:01]} 17. c3 {[%clk 0:01:42]}  d4 {[%clk 0:01:57]} 18. Nh4 {[%clk 0:01:10]}  Rad8 {[%clk 0:01:50]} 19. Be4 {[%clk 0:01:09]}  dxc3 {[%clk 0:01:42]} 20. bxc3 {[%clk 0:01:07]}  Ne7 {[%clk 0:01:42]} 21. Nf6+ {[%clk 0:00:45]}  gxf6 {[%clk 0:01:19]} 22. exf6 {[%clk 0:00:46]}  e5 {[%clk 0:01:14]} 23. Bxh6 {[%clk 0:00:44]}  Bxe4 {[%clk 0:01:08]} 24. Rxe4 {[%clk 0:00:43]}  Nd5 {[%clk 0:00:45]} 25. Rg4+ {[%clk 0:00:24]}  Kh8 {[%clk 0:00:45]} 26. Ng6+ {[%clk 0:00:19]}  fxg6 {[%clk 0:00:40]} 27. hxg6 {[%clk 0:00:20]}  Ndxf6 {[%clk 0:00:39]} 28. Bxf8 {[%clk 0:00:11]}  Nxf8 {[%clk 0:00:33]} 29. Qh6+ {[%clk 0:00:09]}  Kg8 {[%clk 0:00:30]} 30. g7 {[%clk 0:00:09]}  N8h7 {[%clk 0:00:29]} 31. a4 {[%clk 0:00:06]}  Rd7 {[%clk 0:00:27]} 32. a5 {[%clk 0:00:04]}  Rxg7 {[%clk 0:00:26]} 33. Rh4 {[%clk 0:00:04]}  b5 {[%clk 0:00:23]} 34. Re1 {[%clk 0:00:02]}  a6 {[%clk 0:00:21]} 35. d4 {[%clk 0:00:01]}  cxd4 {[%clk 0:00:20]} 36. cxd4 {[%clk 0:00:02]}  e4 {[%clk 0:00:20]} 37. d5 {[%clk 0:00:01]}  Qd7 {[%clk 0:00:17]} 0-1


[Site "https://www.chess.com"]